[Event "Titled Tuesday Blitz July 11 Late 2023"]
[White "Domingo Nunez, Ruben"]
[Black "Todorovic, Bojan"]
[WhiteFideId "22245570"]
[BlackFideId "917087"]
[WhiteElo "2568"]
[BlackElo "2362"]
[Result "0-1"]
[Round "2"]
[TimeControl "180+2"]
[Date "2023.07.11"]
[WhiteClock "0:00:09"]
[BlackClock "0:00:43"]
[Board "131"]

1. c4 {[%clk 0:02:48]}  g6 {[%clk 0:02:58]} 2. Nc3 {[%clk 0:02:46]}  Bg7 {[%clk 0:02:58]} 3. g3 {[%clk 0:02:44]}  Nf6 {[%clk 0:02:57]} 4. Bg2 {[%clk 0:02:44]}  O-O {[%clk 0:02:57]} 5. e4 {[%clk 0:02:44]}  d6 {[%clk 0:02:51]} 6. Nge2 {[%clk 0:02:42]}  c6 {[%clk 0:02:47]} 7. O-O {[%clk 0:02:42]}  a6 {[%clk 0:02:40]} 8. a4 {[%clk 0:02:41]}  a5 {[%clk 0:02:39]} 9. d4 {[%clk 0:02:36]}  e5 {[%clk 0:02:38]} 10. h3 {[%clk 0:02:35]}  Na6 {[%clk 0:02:37]} 11. Be3 {[%clk 0:02:31]}  Qc7 {[%clk 0:02:17]} 12. Qd2 {[%clk 0:02:23]}  Re8 {[%clk 0:02:14]} 13. d5 {[%clk 0:02:23]}  Nc5 {[%clk 0:01:57]} 14. Rad1 {[%clk 0:02:13]}  Bd7 {[%clk 0:01:52]} 15. dxc6 {[%clk 0:01:24]}  Bxc6 {[%clk 0:01:51]} 16. Nb5 {[%clk 0:01:25]}  Bxb5 {[%clk 0:01:41]} 17. cxb5 {[%clk 0:01:25]}  Nxa4 {[%clk 0:01:33]} 18. Qxd6 {[%clk 0:00:53]}  Qxd6 {[%clk 0:01:32]} 19. Rxd6 {[%clk 0:00:54]}  Nxb2 {[%clk 0:01:31]} 20. Bg5 {[%clk 0:00:54]}  Re6 {[%clk 0:01:25]} 21. Rxe6 {[%clk 0:00:50]}  fxe6 {[%clk 0:01:25]} 22. Rb1 {[%clk 0:00:51]}  Nc4 {[%clk 0:01:22]} 23. Nc3 {[%clk 0:00:42]}  a4 {[%clk 0:00:56]} 24. Bf1 {[%clk 0:00:41]}  Nb6 {[%clk 0:00:56]} 25. Be3 {[%clk 0:00:39]}  Nfd7 {[%clk 0:00:56]} 26. Rd1 {[%clk 0:00:30]}  Bf8 {[%clk 0:00:55]} 27. Bd3 {[%clk 0:00:24]}  Bc5 {[%clk 0:00:54]} 28. Bg5 {[%clk 0:00:21]}  Bd4 {[%clk 0:00:51]} 29. Na2 {[%clk 0:00:16]}  Nc5 {[%clk 0:00:51]} 30. Bb1 {[%clk 0:00:15]}  Rf8 {[%clk 0:00:44]} 31. Rd2 {[%clk 0:00:13]}  Nc4 {[%clk 0:00:43]} 32. Rc2 {[%clk 0:00:09]}  Na3 {[%clk 0:00:43]} 0-1


[Site "https://www.chess.com"]

[Event "Titled Tuesday Blitz July 11 Late 2023"]
[White "Guz, Ari"]
[Black "cedchass2006"]
[WhiteFideId "2825759"]
[WhiteElo "2562"]
[BlackElo "2361"]
[Result "1-0"]
[Round "2"]
[TimeControl "180+2"]
[Date "2023.07.11"]
[WhiteClock "0:01:11"]
[BlackClock "0:01:16"]
[Board "132"]

1. a3 {[%clk 0:03:00]}  e5 {[%clk 0:02:57]} 2. e4 {[%clk 0:03:00]}  Nf6 {[%clk 0:02:54]} 3. Nc3 {[%clk 0:02:59]}  Bc5 {[%clk 0:02:54]} 4. h3 {[%clk 0:02:58]}  d6 {[%clk 0:02:53]} 5. Nf3 {[%clk 0:02:56]}  Nc6 {[%clk 0:02:52]} 6. Bc4 {[%clk 0:02:55]}  O-O {[%clk 0:02:52]} 7. b4 {[%clk 0:02:54]}  Bb6 {[%clk 0:02:51]} 8. d3 {[%clk 0:02:55]}  a5 {[%clk 0:02:50]} 9. b5 {[%clk 0:02:53]}  Ne7 {[%clk 0:02:50]} 10. Bg5 {[%clk 0:02:53]}  Ng6 {[%clk 0:02:49]} 11. Nd5 {[%clk 0:02:52]}  c6 {[%clk 0:02:44]} 12. Nxf6+ {[%clk 0:02:49]}  gxf6 {[%clk 0:02:44]} 13. Bh6 {[%clk 0:02:49]}  Re8 {[%clk 0:02:43]} 14. bxc6 {[%clk 0:02:44]}  bxc6 {[%clk 0:02:43]} 15. O-O {[%clk 0:02:41]}  d5 {[%clk 0:02:43]} 16. Bb3 {[%clk 0:02:36]}  Ba6 {[%clk 0:02:40]} 17. Qe2 {[%clk 0:02:33]}  Qd7 {[%clk 0:02:29]} 18. Rab1 {[%clk 0:02:14]}  Rab8 {[%clk 0:02:26]} 19. Nh2 {[%clk 0:02:13]}  f5 {[%clk 0:02:22]} 20. Qh5 {[%clk 0:02:10]}  dxe4 {[%clk 0:02:16]} 21. dxe4 {[%clk 0:02:04]}  Bxf1 {[%clk 0:02:14]} 22. exf5 {[%clk 0:01:51]}  Bd3 {[%clk 0:01:37]} 23. cxd3 {[%clk 0:01:25]}  Qxd3 {[%clk 0:01:37]} 24. Rb2 {[%clk 0:01:25]}  Bd4 {[%clk 0:01:35]} 25. Qg5 {[%clk 0:01:13]}  Bxb2 {[%clk 0:01:16]} 26. Qf6 {[%clk 0:01:11]}  e4 {[%clk 0:01:16]} 27. Bxf7# {[%clk 0:01:11]} 1-0


[Site "https://www.chess.com"]

[Event "Titled Tuesday Blitz July 11 Late 2023"]
[White "Kirillov, Dmitry"]
[Black "Alahakoon, Isuru"]
[WhiteFideId "34180572"]
[BlackFideId "9900993"]
[WhiteElo "2562"]
[BlackElo "2360"]
[Result "1-0"]
[Round "2"]
[TimeControl "180+2"]
[Date "2023.07.11"]
[WhiteClock "0:01:40"]
[BlackClock "0:01:10"]
[Board "133"]

1. d4 {[%clk 0:03:00]}  d5 {[%clk 0:02:59]} 2. Nf3 {[%clk 0:03:01]}  Bf5 {[%clk 0:02:58]} 3. c4 {[%clk 0:02:50]}  e6 {[%clk 0:02:56]} 4. Nc3 {[%clk 0:02:45]}  Nc6 {[%clk 0:02:56]} 5. cxd5 {[%clk 0:02:43]}  exd5 {[%clk 0:02:55]} 6. a3 {[%clk 0:02:33]}  Nf6 {[%clk 0:02:52]} 7. Qb3 {[%clk 0:02:30]}  a6 {[%clk 0:02:43]} 8. Bg5 {[%clk 0:02:26]}  Na5 {[%clk 0:02:34]} 9. Qa4+ {[%clk 0:02:21]}  b5 {[%clk 0:02:33]} 10. Qxa5 {[%clk 0:02:15]}  Be7 {[%clk 0:02:13]} 11. e3 {[%clk 0:02:01]}  O-O {[%clk 0:02:11]} 12. Be2 {[%clk 0:02:01]}  Qd6 {[%clk 0:02:01]} 13. Bf4 {[%clk 0:01:59]}  Qe6 {[%clk 0:01:57]} 14. Ng5 {[%clk 0:01:54]}  Qd7 {[%clk 0:01:19]} 15. Qxc7 {[%clk 0:01:46]}  h6 {[%clk 0:01:18]} 16. Qxd7 {[%clk 0:01:45]}  Nxd7 {[%clk 0:01:19]} 17. Nf3 {[%clk 0:01:44]}  Nb6 {[%clk 0:01:17]} 18. O-O {[%clk 0:01:43]}  Rfd8 {[%clk 0:01:10]} 19. Bc7 {[%clk 0:01:40]} 1-0


[Site "https://www.chess.com"]

[Event "Titled Tuesday Blitz July 11 Late 2023"]
[White "Diano, Eden"]
[Black "Pinheiro, Iung Alicio de O."]
[WhiteFideId "5203708"]
[BlackFideId "2104350"]
[WhiteElo "2350"]
[BlackElo "2559"]
[Result "0-1"]
[Round "2"]
[TimeControl "180+2"]
[Date "2023.07.11"]
[WhiteClock "0:02:02"]
[BlackClock "0:00:57"]
[Board "136"]

1. d4 {[%clk 0:02:59]}  Nf6 {[%clk 0:02:58]} 2. c4 {[%clk 0:02:58]}  Nc6 {[%clk 0:02:57]} 3. Nc3 {[%clk 0:02:55]}  e5 {[%clk 0:02:50]} 4. d5 {[%clk 0:02:55]}  Ne7 {[%clk 0:02:50]} 5. a3 {[%clk 0:02:53]}  Ng6 {[%clk 0:02:45]} 6. b4 {[%clk 0:02:52]}  a5 {[%clk 0:02:42]} 7. Rb1 {[%clk 0:02:52]}  axb4 {[%clk 0:02:42]} 8. axb4 {[%clk 0:02:52]}  d6 {[%clk 0:02:10]} 9. e4 {[%clk 0:02:51]}  Be7 {[%clk 0:02:09]} 10. f3 {[%clk 0:02:51]}  O-O {[%clk 0:02:07]} 11. g3 {[%clk 0:02:51]}  c6 {[%clk 0:02:07]} 12. Be3 {[%clk 0:02:44]}  cxd5 {[%clk 0:02:01]} 13. exd5 {[%clk 0:02:35]}  Bf5 {[%clk 0:01:45]} 14. Bd3 {[%clk 0:02:35]}  Bxd3 {[%clk 0:01:43]} 15. Qxd3 {[%clk 0:02:35]}  Ra3 {[%clk 0:01:44]} 16. Nge2 {[%clk 0:02:34]}  e4 {[%clk 0:01:41]} 17. fxe4 {[%clk 0:02:23]}  Ne5 {[%clk 0:01:38]} 18. Qc2 {[%clk 0:02:23]}  Nxc4 {[%clk 0:01:36]} 19. Bd4 {[%clk 0:02:17]}  Ng4 {[%clk 0:01:36]} 20. Nb5 {[%clk 0:02:13]}  Nge3 {[%clk 0:01:05]} 21. Bxe3 {[%clk 0:02:12]}  Nxe3 {[%clk 0:01:04]} 22. Qc1 {[%clk 0:02:11]}  Rd3 {[%clk 0:01:02]} 23. Kf2 {[%clk 0:02:05]}  Bg5 {[%clk 0:01:00]} 24. Qc7 {[%clk 0:02:01]}  Qf6+ {[%clk 0:00:59]} 25. Ke1 {[%clk 0:02:02]}  Ng2# {[%clk 0:00:57]} 0-1


[Site "https://www.chess.com"]

[Event "Titled Tuesday Blitz July 11 Late 2023"]
[White "Cluke86"]
[Black "Bobkov, Vadim"]
[BlackFideId "34110876"]
[WhiteElo "2343"]
[BlackElo "2550"]
[Result "1-0"]
[Round "2"]
[TimeControl "180+2"]
[Date "2023.07.11"]
[WhiteClock "0:01:10"]
[BlackClock "0:00:00"]
[Board "139"]

1. e4 {[%clk 0:03:00]}  c5 {[%clk 0:02:54]} 2. Nc3 {[%clk 0:03:00]}  g6 {[%clk 0:02:47]} 3. f4 {[%clk 0:03:00]}  Nc6 {[%clk 0:02:46]} 4. Nf3 {[%clk 0:03:00]}  Bg7 {[%clk 0:02:46]} 5. a4 {[%clk 0:02:58]}  d6 {[%clk 0:02:45]} 6. Bb5 {[%clk 0:02:56]}  Bd7 {[%clk 0:02:34]} 7. d3 {[%clk 0:02:53]}  a6 {[%clk 0:02:29]} 8. Bxc6 {[%clk 0:02:51]}  Bxc6 {[%clk 0:02:29]} 9. a5 {[%clk 0:02:51]}  e6 {[%clk 0:02:24]} 10. O-O {[%clk 0:02:49]}  Ne7 {[%clk 0:02:23]} 11. Qe1 {[%clk 0:02:49]}  O-O {[%clk 0:02:20]} 12. Qh4 {[%clk 0:02:43]}  d5 {[%clk 0:02:15]} 13. Bd2 {[%clk 0:02:07]}  dxe4 {[%clk 0:01:18]} 14. dxe4 {[%clk 0:02:06]}  Qc7 {[%clk 0:01:16]} 15. Be3 {[%clk 0:01:41]}  Bb5 {[%clk 0:00:49]} 16. Rfe1 {[%clk 0:01:30]}  Rfd8 {[%clk 0:00:44]} 17. e5 {[%clk 0:01:30]}  Nf5 {[%clk 0:00:41]} 18. Qf2 {[%clk 0:01:29]}  Nxe3 {[%clk 0:00:34]} 19. Qxe3 {[%clk 0:01:29]}  Rd7 {[%clk 0:00:29]} 20. Ne4 {[%clk 0:01:29]}  Rad8 {[%clk 0:00:26]} 21. c3 {[%clk 0:01:26]}  c4 {[%clk 0:00:20]} 22. Nd6 {[%clk 0:01:24]}  Bf8 {[%clk 0:00:19]} 23. Ne4 {[%clk 0:01:23]}  Rd3 {[%clk 0:00:18]} 24. Nf6+ {[%clk 0:01:21]}  Kg7 {[%clk 0:00:17]} 25. Qe2 {[%clk 0:01:21]}  Bc5+ {[%clk 0:00:10]} 26. Kh1 {[%clk 0:01:21]}  Bc6 {[%clk 0:00:02]} 27. Ng5 {[%clk 0:01:18]}  h6 {[%clk 0:00:01]} 28. Nge4 {[%clk 0:01:15]}  Bxe4 {[%clk 0:00:02]} 29. Nxe4 {[%clk 0:01:15]}  Re3 {[%clk 0:00:00]} 30. Qxc4 {[%clk 0:01:10]} 1-0


[Site "https://www.chess.com"]

[Event "Titled Tuesday Blitz July 11 Late 2023"]
[White "Semenenko, Dmytry"]
[Black "Janaszak, Dawid"]
[WhiteFideId "14118645"]
[BlackFideId "1119206"]
[WhiteElo "2338"]
[BlackElo "2545"]
[Result "1-0"]
[Round "2"]
[TimeControl "180+2"]
[Date "2023.07.11"]
[WhiteClock "0:00:53"]
[BlackClock "0:00:16"]
[Board "140"]

1. Nf3 {[%clk 0:03:00]}  g6 {[%clk 0:02:59]} 2. c4 {[%clk 0:03:01]}  Bg7 {[%clk 0:02:59]} 3. d4 {[%clk 0:03:00]}  d6 {[%clk 0:03:00]} 4. Nc3 {[%clk 0:03:00]}  Nf6 {[%clk 0:03:00]} 5. e3 {[%clk 0:03:00]}  O-O {[%clk 0:03:00]} 6. Be2 {[%clk 0:03:00]}  Nbd7 {[%clk 0:02:56]} 7. O-O {[%clk 0:03:00]}  e5 {[%clk 0:02:56]} 8. b3 {[%clk 0:03:00]}  e4 {[%clk 0:02:56]} 9. Nd2 {[%clk 0:02:59]}  Re8 {[%clk 0:02:56]} 10. Bb2 {[%clk 0:02:59]}  c6 {[%clk 0:02:56]} 11. Qc2 {[%clk 0:02:50]}  d5 {[%clk 0:02:56]} 12. Rae1 {[%clk 0:02:48]}  Nf8 {[%clk 0:02:54]} 13. f3 {[%clk 0:02:46]}  Bf5 {[%clk 0:02:50]} 14. fxe4 {[%clk 0:02:46]}  Nxe4 {[%clk 0:02:50]} 15. Ndxe4 {[%clk 0:02:46]}  dxe4 {[%clk 0:02:48]} 16. Kh1 {[%clk 0:02:41]}  h5 {[%clk 0:02:48]} 17. Bxh5 {[%clk 0:02:39]}  Qg5 {[%clk 0:02:48]} 18. Bd1 {[%clk 0:02:33]}  Nh7 {[%clk 0:02:48]} 19. Qf2 {[%clk 0:02:30]}  Nf6 {[%clk 0:02:25]} 20. h3 {[%clk 0:02:26]}  Be6 {[%clk 0:01:59]} 21. Qf4 {[%clk 0:02:18]}  Nh7 {[%clk 0:01:56]} 22. Nxe4 {[%clk 0:02:16]}  Qa5 {[%clk 0:01:55]} 23. a3 {[%clk 0:02:03]}  Rad8 {[%clk 0:01:47]} 24. Nc5 {[%clk 0:01:51]}  Re7 {[%clk 0:01:32]} 25. Nxe6 {[%clk 0:01:48]}  fxe6 {[%clk 0:01:33]} 26. Qg4 {[%clk 0:01:43]}  Nf8 {[%clk 0:01:32]} 27. b4 {[%clk 0:01:39]}  Qc7 {[%clk 0:01:30]} 28. Bc2 {[%clk 0:01:34]}  Rf7 {[%clk 0:01:21]} 29. Bxg6 {[%clk 0:01:31]}  Rxf1+ {[%clk 0:01:21]} 30. Rxf1 {[%clk 0:01:31]}  Rd7 {[%clk 0:01:17]} 31. Qh5 {[%clk 0:01:25]}  Qg3 {[%clk 0:01:08]} 32. Bf7+ {[%clk 0:01:23]}  Rxf7 {[%clk 0:01:08]} 33. Qxf7+ {[%clk 0:01:23]}  Kh8 {[%clk 0:01:09]} 34. Qh5+ {[%clk 0:01:22]}  Kg8 {[%clk 0:01:09]} 35. Qf3 {[%clk 0:01:18]}  Qg6 {[%clk 0:01:07]} 36. Ba1 {[%clk 0:01:14]}  Nh7 {[%clk 0:01:08]} 37. d5 {[%clk 0:01:12]}  e5 {[%clk 0:01:06]} 38. dxc6 {[%clk 0:01:10]}  bxc6 {[%clk 0:01:07]} 39. Qf5 {[%clk 0:01:07]}  Qe8 {[%clk 0:01:04]} 40. Rd1 {[%clk 0:01:03]}  Nf6 {[%clk 0:01:00]} 41. Bxe5 {[%clk 0:01:02]}  Nh5 {[%clk 0:00:57]} 42. Bh2 {[%clk 0:00:59]}  Nf6 {[%clk 0:00:44]} 43. Rd6 {[%clk 0:00:55]}  Ne4 {[%clk 0:00:37]} 44. Qe6+ {[%clk 0:00:54]}  Kf8 {[%clk 0:00:17]} 45. Qxe8+ {[%clk 0:00:53]}  Kxe8 {[%clk 0:00:16]} 46. Re6+ {[%clk 0:00:53]} 1-0


[Site "https://www.chess.com"]

[Event "Titled Tuesday Blitz July 11 Late 2023"]
[White "Svicevic, Rastko"]
[Black "Mortazavi, Ali"]
[WhiteFideId "916315"]
[BlackFideId "401323"]
[WhiteElo "2337"]
[BlackElo "2532"]
[Result "0-1"]
[Round "2"]
[TimeControl "180+2"]
[Date "2023.07.11"]
[WhiteClock "0:00:00"]
[BlackClock "0:00:17"]
[Board "141"]

1. d4 {[%clk 0:03:00]}  Nf6 {[%clk 0:02:44]} 2. Bg5 {[%clk 0:02:59]}  Ne4 {[%clk 0:02:43]} 3. Bf4 {[%clk 0:02:59]}  d5 {[%clk 0:02:44]} 4. e3 {[%clk 0:03:00]}  Bf5 {[%clk 0:02:45]} 5. Bd3 {[%clk 0:02:59]}  e6 {[%clk 0:02:45]} 6. Ne2 {[%clk 0:02:59]}  Be7 {[%clk 0:02:43]} 7. h3 {[%clk 0:02:58]}  O-O {[%clk 0:02:39]} 8. O-O {[%clk 0:02:55]}  c5 {[%clk 0:02:40]} 9. Nd2 {[%clk 0:02:55]}  Nc6 {[%clk 0:02:03]} 10. Bxe4 {[%clk 0:02:46]}  Bxe4 {[%clk 0:01:57]} 11. Nxe4 {[%clk 0:02:45]}  dxe4 {[%clk 0:01:58]} 12. c3 {[%clk 0:02:17]}  f5 {[%clk 0:01:52]} 13. dxc5 {[%clk 0:02:07]}  e5 {[%clk 0:01:39]} 14. Qb3+ {[%clk 0:01:50]}  Kh8 {[%clk 0:01:38]} 15. Bh2 {[%clk 0:01:49]}  Qc7 {[%clk 0:01:28]} 16. Nd4 {[%clk 0:01:47]}  Na5 {[%clk 0:01:04]} 17. Qa4 {[%clk 0:01:40]}  Rf6 {[%clk 0:01:04]} 18. b4 {[%clk 0:01:25]}  Nc4 {[%clk 0:01:02]} 19. Qb5 {[%clk 0:01:20]}  Nb2 {[%clk 0:00:52]} 20. c6 {[%clk 0:01:08]}  f4 {[%clk 0:00:47]} 21. Qxb7 {[%clk 0:00:49]}  Qxb7 {[%clk 0:00:43]} 22. cxb7 {[%clk 0:00:50]}  Rb8 {[%clk 0:00:44]} 23. Ne2 {[%clk 0:00:38]}  Nd3 {[%clk 0:00:41]} 24. exf4 {[%clk 0:00:36]}  exf4 {[%clk 0:00:41]} 25. a3 {[%clk 0:00:26]}  Rxb7 {[%clk 0:00:41]} 26. c4 {[%clk 0:00:27]}  f3 {[%clk 0:00:36]} 27. Nc3 {[%clk 0:00:25]}  Rg6 {[%clk 0:00:33]} 28. g4 {[%clk 0:00:23]}  Bf6 {[%clk 0:00:25]} 29. Nxe4 {[%clk 0:00:20]}  Bxa1 {[%clk 0:00:25]} 30. Rxa1 {[%clk 0:00:20]}  h5 {[%clk 0:00:25]} 31. Rd1 {[%clk 0:00:08]}  Nb2 {[%clk 0:00:25]} 32. c5 {[%clk 0:00:07]}  hxg4 {[%clk 0:00:23]} 33. Nd6 {[%clk 0:00:07]}  Re7 {[%clk 0:00:20]} 34. Bg3 {[%clk 0:00:05]}  Na4 {[%clk 0:00:17]} 35. c6 {[%clk 0:00:05]}  Nc3 {[%clk 0:00:16]} 36. Rd4 {[%clk 0:00:00]}  Ne2+ {[%clk 0:00:17]} 0-1


[Site "https://www.chess.com"]

[Event "Titled Tuesday Blitz July 11 Late 2023"]
[White "Elaisaz"]
[Black "Francisco Guecamburu, Candela Be"]
[BlackFideId "160911"]
[WhiteElo "2328"]
[BlackElo "2522"]
[Result "0-1"]
[Round "2"]
[TimeControl "180+2"]
[Date "2023.07.11"]
[WhiteClock "0:00:13"]
[BlackClock "0:00:38"]
[Board "144"]

1. Nf3 {[%clk 0:02:52]}  c5 {[%clk 0:02:58]} 2. g3 {[%clk 0:02:52]}  Nc6 {[%clk 0:02:58]} 3. Bg2 {[%clk 0:02:52]}  g6 {[%clk 0:02:58]} 4. O-O {[%clk 0:02:53]}  Bg7 {[%clk 0:02:59]} 5. d3 {[%clk 0:02:52]}  d6 {[%clk 0:02:56]} 6. c4 {[%clk 0:02:52]}  e6 {[%clk 0:02:55]} 7. Nc3 {[%clk 0:02:52]}  Nge7 {[%clk 0:02:55]} 8. Rb1 {[%clk 0:02:50]}  a5 {[%clk 0:02:54]} 9. e4 {[%clk 0:02:34]}  O-O {[%clk 0:02:53]} 10. Be3 {[%clk 0:02:34]}  Nd4 {[%clk 0:02:50]} 11. Ne2 {[%clk 0:02:28]}  Nxf3+ {[%clk 0:02:47]} 12. Bxf3 {[%clk 0:02:28]}  Nc6 {[%clk 0:02:42]} 13. d4 {[%clk 0:02:25]}  Qe7 {[%clk 0:02:34]} 14. Qd2 {[%clk 0:02:07]}  Qf6 {[%clk 0:02:02]} 15. Bg2 {[%clk 0:01:44]}  cxd4 {[%clk 0:01:56]} 16. Bg5 {[%clk 0:01:44]}  Qe5 {[%clk 0:01:56]} 17. a3 {[%clk 0:01:26]}  a4 {[%clk 0:01:53]} 18. Rbc1 {[%clk 0:01:09]}  Qc5 {[%clk 0:01:47]} 19. Rfd1 {[%clk 0:01:04]}  Na5 {[%clk 0:01:36]} 20. Nxd4 {[%clk 0:00:59]}  Bxd4 {[%clk 0:01:34]} 21. Qxd4 {[%clk 0:00:58]}  Qxg5 {[%clk 0:01:34]} 22. Qxd6 {[%clk 0:00:57]}  Nb3 {[%clk 0:01:32]} 23. Rc3 {[%clk 0:00:53]}  Ra6 {[%clk 0:01:24]} 24. Qb4 {[%clk 0:00:43]}  Qc5 {[%clk 0:01:15]} 25. Qb5 {[%clk 0:00:42]}  Qxb5 {[%clk 0:01:11]} 26. cxb5 {[%clk 0:00:43]}  Rb6 {[%clk 0:01:12]} 27. Bf1 {[%clk 0:00:27]}  e5 {[%clk 0:01:11]} 28. Rc4 {[%clk 0:00:25]}  Bg4 {[%clk 0:00:58]} 29. Rd3 {[%clk 0:00:19]}  Be6 {[%clk 0:00:37]} 30. Rxa4 {[%clk 0:00:13]}  Nc5 {[%clk 0:00:38]} 0-1


[Site "https://www.chess.com"]

[Event "Titled Tuesday Blitz July 11 Late 2023"]
[White "Mattheii"]
[Black "Vasques, Antonio Pedro Freixial"]
[BlackFideId "1908332"]
[WhiteElo "2517"]
[BlackElo "2322"]
[Result "1-0"]
[Round "2"]
[TimeControl "180+2"]
[Date "2023.07.11"]
[WhiteClock "0:01:49"]
[BlackClock "0:01:38"]
[Board "145"]

1. d4 {[%clk 0:03:00]}  Nf6 {[%clk 0:02:52]} 2. c4 {[%clk 0:03:00]}  e6 {[%clk 0:02:51]} 3. Nc3 {[%clk 0:03:00]}  Bb4 {[%clk 0:02:50]} 4. Qc2 {[%clk 0:03:01]}  O-O {[%clk 0:02:49]} 5. e4 {[%clk 0:03:01]}  Bxc3+ {[%clk 0:02:46]} 6. bxc3 {[%clk 0:03:01]}  d6 {[%clk 0:02:42]} 7. f4 {[%clk 0:03:01]}  c5 {[%clk 0:02:40]} 8. e5 {[%clk 0:02:51]}  dxe5 {[%clk 0:02:36]} 9. fxe5 {[%clk 0:02:52]}  Nfd7 {[%clk 0:02:25]} 10. Nf3 {[%clk 0:02:52]}  Nc6 {[%clk 0:02:25]} 11. Bd3 {[%clk 0:02:45]}  h6 {[%clk 0:02:23]} 12. Rb1 {[%clk 0:02:28]}  b6 {[%clk 0:02:18]} 13. O-O {[%clk 0:02:12]}  Bb7 {[%clk 0:02:17]} 14. Qe2 {[%clk 0:02:01]}  Rc8 {[%clk 0:01:57]} 15. Qe4 {[%clk 0:01:56]}  f5 {[%clk 0:01:55]} 16. exf6 {[%clk 0:01:56]}  Nxf6 {[%clk 0:01:55]} 17. Qxe6+ {[%clk 0:01:56]}  Kh8 {[%clk 0:01:56]} 18. Nh4 {[%clk 0:01:49]}  Ne7 {[%clk 0:01:38]} 19. Qxe7 {[%clk 0:01:49]} 1-0


[Site "https://www.chess.com"]

[Event "Titled Tuesday Blitz July 11 Late 2023"]
[White "Santos Flores, Alberto"]
[Black "The_Straightforward_Rook"]
[WhiteFideId "3601234"]
[WhiteElo "2517"]
[BlackElo "2318"]
[Result "1-0"]
[Round "2"]
[TimeControl "180+2"]
[Date "2023.07.11"]
[WhiteClock "0:00:51"]
[BlackClock "0:00:19"]
[Board "147"]

1. e4 {[%clk 0:03:00]}  e5 {[%clk 0:02:59]} 2. Nf3 {[%clk 0:03:00]}  Nc6 {[%clk 0:03:00]} 3. Bc4 {[%clk 0:02:56]}  Bc5 {[%clk 0:02:59]} 4. c3 {[%clk 0:02:56]}  Nf6 {[%clk 0:02:59]} 5. d3 {[%clk 0:02:56]}  a6 {[%clk 0:02:58]} 6. O-O {[%clk 0:02:56]}  Ba7 {[%clk 0:02:57]} 7. Nbd2 {[%clk 0:02:56]}  d6 {[%clk 0:02:55]} 8. Bb3 {[%clk 0:02:55]}  h6 {[%clk 0:02:55]} 9. Re1 {[%clk 0:02:55]}  g5 {[%clk 0:02:54]} 10. Nf1 {[%clk 0:02:55]}  g4 {[%clk 0:02:53]} 11. N3d2 {[%clk 0:02:48]}  h5 {[%clk 0:02:54]} 12. Nc4 {[%clk 0:02:48]}  h4 {[%clk 0:02:52]} 13. Be3 {[%clk 0:02:48]}  Bxe3 {[%clk 0:02:37]} 14. Ncxe3 {[%clk 0:02:48]}  Rg8 {[%clk 0:02:28]} 15. Nd2 {[%clk 0:02:43]}  g3 {[%clk 0:02:25]} 16. fxg3 {[%clk 0:02:40]}  hxg3 {[%clk 0:02:26]} 17. h3 {[%clk 0:02:40]}  Be6 {[%clk 0:02:18]} 18. Rf1 {[%clk 0:02:39]}  Qe7 {[%clk 0:02:16]} 19. Qf3 {[%clk 0:02:32]}  Nh7 {[%clk 0:02:03]} 20. Nd5 {[%clk 0:02:25]}  Bxd5 {[%clk 0:01:51]} 21. Bxd5 {[%clk 0:02:26]}  Ng5 {[%clk 0:01:50]} 22. Qf5 {[%clk 0:02:21]}  Ne6 {[%clk 0:01:46]} 23. Bxe6 {[%clk 0:02:17]}  fxe6 {[%clk 0:01:44]} 24. Qf6 {[%clk 0:02:17]}  Kd7 {[%clk 0:01:38]} 25. Qxe7+ {[%clk 0:02:15]}  Kxe7 {[%clk 0:01:39]} 26. Rf3 {[%clk 0:02:14]}  Rg7 {[%clk 0:01:30]} 27. Re1 {[%clk 0:02:09]}  d5 {[%clk 0:01:23]} 28. Nf1 {[%clk 0:02:07]}  d4 {[%clk 0:01:20]} 29. Rxg3 {[%clk 0:02:02]}  Rxg3 {[%clk 0:01:12]} 30. Nxg3 {[%clk 0:02:03]}  b5 {[%clk 0:01:06]} 31. Ne2 {[%clk 0:01:54]}  Rd8 {[%clk 0:01:01]} 32. Rd1 {[%clk 0:01:49]}  dxc3 {[%clk 0:00:58]} 33. bxc3 {[%clk 0:01:49]}  b4 {[%clk 0:00:58]} 34. cxb4 {[%clk 0:01:12]}  Nxb4 {[%clk 0:00:59]} 35. Nc1 {[%clk 0:01:12]}  c5 {[%clk 0:00:58]} 36. Kf2 {[%clk 0:01:08]}  c4 {[%clk 0:00:58]} 37. Ke3 {[%clk 0:01:08]}  Nc2+ {[%clk 0:00:54]} 38. Kd2 {[%clk 0:01:06]}  Nb4 {[%clk 0:00:48]} 39. Kc3 {[%clk 0:01:03]}  Nxd3 {[%clk 0:00:27]} 40. Nxd3 {[%clk 0:01:02]}  cxd3 {[%clk 0:00:28]} 41. Rxd3 {[%clk 0:01:02]}  Rc8+ {[%clk 0:00:26]} 42. Kd2 {[%clk 0:00:59]}  Rb8 {[%clk 0:00:26]} 43. Ke3 {[%clk 0:00:58]}  Rb2 {[%clk 0:00:26]} 44. Rd2 {[%clk 0:00:58]}  Rb1 {[%clk 0:00:27]} 45. Kf3 {[%clk 0:00:58]}  Rf1+ {[%clk 0:00:27]} 46. Rf2 {[%clk 0:00:57]}  Rg1 {[%clk 0:00:25]} 47. g4 {[%clk 0:00:57]}  a5 {[%clk 0:00:26]} 48. h4 {[%clk 0:00:56]}  a4 {[%clk 0:00:25]} 49. Rg2 {[%clk 0:00:55]}  Rb1 {[%clk 0:00:25]} 50. g5 {[%clk 0:00:55]}  a3 {[%clk 0:00:25]} 51. h5 {[%clk 0:00:55]}  Rb2 {[%clk 0:00:24]} 52. h6 {[%clk 0:00:54]}  Kf7 {[%clk 0:00:21]} 53. g6+ {[%clk 0:00:54]}  Kg8 {[%clk 0:00:21]} 54. g7 {[%clk 0:00:51]}  Rxg2 {[%clk 0:00:15]} 55. Kxg2 {[%clk 0:00:50]}  Kh7 {[%clk 0:00:16]} 56. Kf3 {[%clk 0:00:50]}  Kg8 {[%clk 0:00:17]} 57. Ke3 {[%clk 0:00:50]}  Kh7 {[%clk 0:00:18]} 58. Kd3 {[%clk 0:00:51]}  Kg8 {[%clk 0:00:19]} 59. Kc3 {[%clk 0:00:51]}  Kh7 {[%clk 0:00:19]} 60. Kb3 {[%clk 0:00:51]} 1-0


[Site "https://www.chess.com"]